bitfinex/quotes_SOLUSD_20250413
["timestamp","ask_amount","ask_price","bid_price","bid_amount"]
[1744504545924,0.4691365,132.55,132.49,18.79181043]
[1744504545925,22.67089634,132.55,132.49,22.20175984]
[1744504546218,22.20175984,132.53,132.48,109.06167198]
[1744504546469,22.20175984,132.53,132.48,86.85991214]
[1744504546727,7.545,132.54,132.48,86.575589]
[1744504546921,22.20175984,132.53,132.48,86.575589]
[1744504547120,21.20175984,132.53,132.48,86.575589]
[1744504547316,22.20175984,132.51,132.48,79.027489]
[1744504547716,22.20175984,132.53,132.48,86.575689]
[1744504547913,26.0,132.53,132.49,22.20175984]
[1744504548620,26.0,132.53,132.5,7.5471]
[1744504548819,0.4691365,132.55,132.5,29.74885984]
[1744504549021,22.67089634,132.55,132.5,29.74885984]
[1744504549319,22.20175984,132.54,132.5,7.5471]
[1744504549523,0.4691365,132.55,132.5,29.74885984]
[1744504549709,0.4691365,132.55,132.52,22.20175984]
[1744504550031,0.4691365,132.55,132.54,22.20175984]
[1744504551029,0.4691365,132.55,132.54,29.74655984]
[1744504551228,0.4691365,132.55,132.54,48.82269341]
[1744504551930,27.91719634,132.6,132.54,48.82269341]
[1744504552131,27.91719634,132.6,132.55,22.20175984]
[1744504552327,22.20175984,132.59,132.54,26.62093357]
[1744504552527,5.7154365,132.6,132.54,26.62093357]
[1744504552833,22.20175984,132.55,132.5,29.32175984]
[1744504553133,22.20175984,132.56,132.51,29.74835984]
[1744504553525,22.20175984,132.55,132.51,7.5466]
[1744504553718,22.20175984,132.55,132.5,29.74865984]
[1744504554226,48.20175984,132.55,132.5,29.74865984]
[1744504555135,48.20175984,132.55,132.49,26.62383357]
[1744504555327,22.20175984,132.52,132.48,86.575589]
[1744504555535,22.20175984,132.54,132.49,22.20175984]
[1744504555722,26.0,132.55,132.51,22.20175984]
[1744504555912,26.0,132.55,132.52,22.20175984]
[1744504556542,7.12,132.59,132.5,0.28432314]
[1744504556709,27.91719634,132.6,132.55,22.20175984]
[1744504557017,22.20175984,132.59,132.54,22.20175984]
[1744504557413,27.91719634,132.6,132.55,29.74605984]
[1744504558411,5.7154365,132.6,132.56,22.20175984]
[1744504559536,22.20175984,132.58,132.52,97.81929943]
[1744504559731,22.20175984,132.56,132.52,86.573389]
[1744504559912,22.20175984,132.56,132.52,7.5459]
[1744504560241,22.20175984,132.57,132.52,7.5459]
[1744504560629,22.20175984,132.53,132.48,22.20175984]
[1744504560939,22.20175984,132.51,132.48,7.5483]
[1744504561534,22.20175984,132.5,132.45,101.22924884]
[1744504561933,22.20175984,132.5,132.46,7.5493]
[1744504562133,26.0,132.52,132.47,22.20175984]
[1744504562314,26.0,132.55,132.5,22.20175984]
[1744504562509,22.20175984,132.54,132.49,22.20175984]
[1744504562716,48.20175984,132.54,132.49,22.20175984]
[1744504563534,48.20175984,132.54,132.49,7.5474]
[1744504563735,22.20175984,132.53,132.48,29.74985984]
[1744504563938,26.0,132.55,132.5,22.20175984]
[1744504564235,26.0,132.55,132.51,22.20175984]
[1744504564413,48.20175984,132.55,132.5,22.20175984]
[1744504564615,22.20175984,132.53,132.5,79.027489]
[1744504565320,22.20175984,132.51,132.48,79.027489]
[1744504565631,22.20175984,132.52,132.48,86.575689]
[1744504565844,27.5536,132.58,132.49,22.20175984]
[1744504566012,27.5536,132.58,132.5,22.20175984]
[1744504566013,22.20175984,132.55,132.5,22.20175984]
[1744504566213,22.20175984,132.55,132.5,101.22924884]
[1744504566515,22.20175984,132.54,132.5,79.027489]
[1744504567039,22.20175984,132.54,132.5,86.574189]
[1744504569746,29.74695984,132.54,132.5,79.027489]
[1744504569929,22.20175984,132.51,132.48,79.027489]
[1744504570133,22.20175984,132.49,132.48,79.027489]
[1744504570340,22.20175984,132.51,132.46,22.34392141]
[1744504570530,13.5568,132.56,132.5,22.20175984]
[1744504570750,22.20175984,132.55,132.5,101.22924884]
[1744504571436,22.20175984,132.54,132.5,79.027489]
[1744504572846,22.20175984,132.53,132.5,79.027489]
[1744504573175,22.20175984,132.51,132.5,79.027489]
[1744504573933,22.20175984,132.51,132.46,79.027489]
[1744504574128,48.20175984,132.51,132.46,108.77854884]
[1744504574534,48.20175984,132.51,132.46,29.75105984]
[1744504574734,22.20175984,132.5,132.45,29.75145984]
[1744504575357,48.20175984,132.51,132.46,22.20175984]
[1744504575652,26.0,132.51,132.46,22.20175984]
[1744504576056,48.20175984,132.51,132.45,7.5497]
[1744504576352,26.0,132.53,132.49,22.20175984]
[1744504576865,23.00175984,132.55,132.5,22.20175984]
[1744504577026,0.8,132.55,132.51,22.20175984]
[1744504577655,23.00175984,132.55,132.5,22.20175984]
[1744504578439,23.00175984,132.55,132.49,7.5476]
[1744504578755,23.00175984,132.55,132.5,22.20175984]
[1744504579151,23.00175984,132.55,132.5,29.74865984]
[1744504579950,22.20175984,132.52,132.47,22.20175984]
[1744504580262,22.20175984,132.5,132.47,79.027489]
[1744504581134,22.20175984,132.49,132.47,79.027489]
[1744504581327,22.20175984,132.48,132.44,7.5503]
[1744504581527,22.20175984,132.49,132.44,29.75205984]
[1744504582160,1.5973,132.51,132.46,22.20175984]
[1744504582459,22.20175984,132.51,132.46,22.20175984]
[1744504582661,22.20175984,132.5,132.44,86.577789]
[1744504582960,22.20175984,132.5,132.45,22.20175984]
[1744504583548,22.20175984,132.5,132.45,29.75135984]
[1744504583754,26.0,132.52,132.48,22.20175984]
[1744504583950,0.8,132.55,132.5,22.20175984]
[1744504584469,23.00175984,132.55,132.5,22.20175984]
[1744504584670,0.8,132.55,132.51,22.20175984]
[1744504586166,0.8,132.55,132.51,101.22924884]
[1744504586341,28.21465984,132.56,132.51,108.77554884]
[1744504586551,43.10865984,132.59,132.54,22.20175984]
[1744504586861,22.20175984,132.57,132.52,22.20175984]
[1744504587051,22.20175984,132.57,132.52,101.22924884]
[1744504587554,29.74445984,132.58,132.53,22.20175984]
[1744504587854,0.03,132.61,132.53,86.572389]
[1744504588072,22.20175984,132.58,132.53,108.77414884]
[1744504588262,26.0,132.59,132.53,108.77414884]
[1744504588437,48.20175984,132.59,132.53,108.77414884]
[1744504588645,22.20175984,132.58,132.53,108.77414884]
[1744504589472,22.20175984,132.57,132.53,79.027489]
[1744504589669,7.5427,132.58,132.5,19.00996157]
[1744504589670,48.20175984,132.55,132.5,40.8514087]
[1744504589844,48.20175984,132.55,132.5,18.64964886]
[1744504590168,48.20175984,132.55,132.5,40.8514087]
[1744504590765,55.74605984,132.55,132.5,48.3983087]
[1744504591854,48.20175984,132.55,132.5,48.3983087]
[1744504592058,26.0,132.55,132.51,22.20175984]
[1744504592856,26.0,132.55,132.51,101.22924884]
[1744504593379,26.0,132.55,132.51,108.77544884]
[1744504593958,22.20175984,132.57,132.52,22.20175984]
[1744504594164,36.98395984,132.59,132.54,22.20175984]
[1744504594458,22.20175984,132.6,132.55,22.20175984]
[1744504594983,0.03,132.61,132.57,22.20175984]
[1744504595151,0.03,132.61,132.59,22.20175984]
[1744504595352,0.03,132.61,132.6,22.20175984]
[1744504595667,0.03,132.61,132.6,29.74315984]
[1744504596178,0.03,132.61,132.6,48.81929341]
[1744504598170,0.03,132.61,132.6,127.84678241]
[1744504599591,0.03,132.65,132.61,19.07613357]
[1744504599764,0.03,132.65,132.64,41.27789341]
[1744504600464,0.03,132.65,132.64,48.81709341]
[1744504602384,0.03,132.65,132.63,22.20175984]
[1744504604982,0.03,132.65,132.63,29.74135984]
[1744504605288,0.03,132.65,132.64,22.20175984]
[1744504606288,0.03,132.65,132.64,48.3906087]
[1744504606463,0.03,132.65,132.64,127.84458241]
[1744504606985,0.03,132.65,132.64,135.06458241]
[1744504607365,0.03,132.65,132.64,157.26634225]
[1744504607884,0.03,132.65,132.64,81.94749809]
[1744504608086,0.03,132.69,132.65,0.14216157]
[1744504608289,0.03,132.69,132.68,48.81479341]
[1744504608589,0.03,132.69,132.68,130.41479341]
[1744504609594,35.52045984,132.76,132.7,0.42648471]
[1744504609775,20.3665,132.8,132.73,22.20175984]
[1744504610092,22.20175984,132.78,132.73,22.20175984]
[1744504610603,22.20175984,132.79,132.74,22.20175984]
[1744504610886,23.74165984,132.8,132.75,22.20175984]
[1744504611187,29.73145984,132.81,132.76,22.20175984]
[1744504611393,22.20175984,132.8,132.75,22.20175984]
[1744504611766,29.73205984,132.8,132.75,22.20175984]
[1744504612270,29.73205984,132.8,132.75,29.42175984]
[1744504612489,7.5303,132.8,132.75,36.95445984]
[1744504612788,22.20175984,132.79,132.75,7.22]
[1744504613995,29.73205984,132.8,132.75,29.42175984]
[1744504614501,22.20175984,132.79,132.75,7.22]
[1744504615010,22.20175984,132.78,132.75,7.22]
[1744504615184,22.20175984,132.78,132.73,7.22]
[1744504615370,22.20175984,132.78,132.74,18.64964886]
[1744504615779,22.20175984,132.78,132.74,40.8514087]
[1744504615980,22.20175984,132.79,132.74,40.8514087]
[1744504616188,29.73265984,132.79,132.74,40.8514087]
[1744504616497,22.20175984,132.8,132.75,22.20175984]
[1744504616700,10.1891432,132.82,132.78,22.20175984]
[1744504616997,10.1891432,132.82,132.75,18.64964886]
[1744504616998,22.20175984,132.79,132.75,18.64964886]
[1744504618276,29.73245984,132.79,132.75,18.64964886]
[1744504618596,22.20175984,132.76,132.72,18.64964886]
[1744504618792,22.20175984,132.77,132.72,40.8514087]
[1744504618981,29.73195984,132.8,132.75,22.20175984]
[1744504619185,29.73195984,132.8,132.76,22.20175984]
[1744504619383,29.73195984,132.8,132.75,22.20175984]
[1744504619903,29.73145984,132.81,132.76,22.20175984]
[1744504620404,22.20175984,132.8,132.75,36.95425984]
[1744504620905,22.20175984,132.8,132.75,14.7525]
[1744504621081,22.20175984,132.8,132.75,36.95425984]
[1744504622101,29.73185984,132.8,132.75,118.55425984]
[1744504622603,22.20175984,132.78,132.75,88.82]
[1744504623506,29.73185984,132.8,132.75,111.02175984]
[1744504624286,29.73185984,132.8,132.75,118.55455984]
[1744504624499,24.86180304,132.82,132.77,22.20175984]
[1744504624700,2.6600432,132.82,132.79,40.8514087]
[1744504624891,2.6600432,132.82,132.81,41.27789341]
[1744504625302,2.6600432,132.82,132.81,114.41671665]
[1744504625623,4.32e-05,132.82,132.81,114.41671665]
[1744504625819,0.03,132.85,132.84,18.64964886]
[1744504625986,0.03,132.94,132.85,0.14216157]
[1744504626183,0.03,132.94,132.9,13.74058308]
[1744504626693,0.03,132.94,132.91,13.74058308]
[1744504626902,0.03,132.94,132.9,21.26468308]
[1744504627297,0.03,132.94,132.9,29.48457806]
[1744504628002,0.03,132.94,132.91,21.96047806]
[1744504630597,0.03,132.94,132.91,29.48417806]
[1744504631990,0.03,132.94,132.93,41.03661163]
[1744504632214,0.03,132.94,132.93,48.55931163]
[1744504632520,0.03,132.94,132.93,26.59883357]
[1744504632723,0.03,132.94,132.93,48.55931163]
[1744504634822,0.03,132.94,132.92,21.96047806]
[1744504635512,0.03,132.94,132.91,81.6]
[1744504636415,0.03,132.94,132.91,103.56047806]
[1744504636622,0.03,132.94,132.91,81.6]
[1744504636808,21.99047806,132.94,132.91,81.6]
[1744504637920,0.03,132.94,132.91,81.6]
[1744504638105,21.96047806,132.93,132.91,81.6]
[1744504638303,0.03,132.94,132.88,7.2]
[1744504638304,21.96047806,132.92,132.88,7.2]
[1744504638913,0.03,132.94,132.89,41.03661163]
[1744504639121,0.03,132.94,132.9,21.96047806]
[1744504639723,21.99047806,132.94,132.89,122.63661163]
[1744504640810,0.03,132.94,132.9,21.96047806]
[1744504641320,0.03,132.94,132.9,29.48447806]
[1744504641731,0.03,132.94,132.91,18.64964886]
[1744504641908,0.03,132.94,132.92,21.96047806]
[1744504642613,0.03,132.94,132.91,122.21012692]
[1744504642814,21.96047806,132.93,132.91,81.6]
[1744504643128,0.03,132.94,132.88,29.16047806]
[1744504643129,21.96047806,132.92,132.88,26.17504886]
[1744504643826,29.48327806,132.93,132.88,48.13552692]
[1744504644000,21.96047806,132.92,132.88,26.17504886]
[1744504644204,21.96047806,132.92,132.88,7.5254]
[1744504644422,21.96047806,132.92,132.87,103.56047806]
[1744504644628,21.96047806,132.88,132.87,81.6]
[1744504644825,21.96047806,132.88,132.85,7.527]
[1744504645034,21.96047806,132.88,132.85,18.64964886]
[1744504645318,21.96047806,132.9,132.85,18.64964886]
[1744504645514,29.48487806,132.9,132.85,7.5271]
[1744504645723,21.96047806,132.89,132.84,88.8]
[1744504646030,21.96047806,132.87,132.84,88.8]
[1744504646214,21.96047806,132.86,132.84,81.6]
[1744504646421,21.96047806,132.85,132.81,81.6]
[1744504647031,21.96047806,132.85,132.81,89.1294]
[1744504648040,21.96047806,132.85,132.81,81.6]
[1744504648237,21.96047806,132.82,132.81,81.6]
[1744504648539,21.96047806,132.82,132.79,81.6]
[1744504648845,21.96047806,132.81,132.79,81.6]
[1744504649413,21.96047806,132.8,132.79,81.6]
[1744504649816,29.49057806,132.8,132.79,81.6]
[1744504650013,29.49057806,132.8,132.74,81.6]
[1744504650218,21.96047806,132.77,132.74,81.6]
[1744504652112,7.5295,132.82,132.75,21.96047806]
[1744504652312,21.96047806,132.8,132.75,103.56047806]
[1744504652626,21.96047806,132.78,132.75,81.6]
[1744504652946,21.96047806,132.77,132.73,81.6]
[1744504653145,21.96047806,132.74,132.73,81.6]
[1744504653315,21.96047806,132.74,132.7,88.8]
[1744504654062,21.96047806,132.72,132.7,81.6]
[1744504654615,29.49357806,132.75,132.7,103.56047806]
[1744504654832,21.96047806,132.74,132.7,81.6]
[1744504656717,8.1542,132.8,132.73,21.96047806]
[1744504656912,21.96047806,132.77,132.73,81.6]
[1744504657223,15.6843,132.8,132.69,81.663]
[1744504657224,21.96047806,132.74,132.69,81.663]
[1744504657415,21.96047806,132.73,132.69,81.663]
[1744504657817,7.22,132.78,132.7,40.61012692]
[1744504658018,21.96047806,132.76,132.72,7.5346]
[1744504658224,21.96047806,132.75,132.71,7.5351]
[1744504658442,21.96047806,132.75,132.71,89.1351]
[1744504658940,21.96047806,132.76,132.71,111.09557806]
[1744504659128,21.96047806,132.77,132.72,21.96047806]
[1744504659536,21.96047806,132.77,132.71,111.09557806]
[1744504660374,21.96047806,132.76,132.71,111.09557806]
[1744504660719,21.96047806,132.76,132.71,89.1351]
[1744504660925,21.96047806,132.75,132.71,89.1351]
[1744504661544,21.96047806,132.75,132.71,81.6]
[1744504661545,21.96047806,132.74,132.71,81.6]
[1744504661720,21.96047806,132.73,132.71,81.6]
[1744504661920,30.11467806,132.8,132.72,21.96047806]
[1744504661921,26.0,132.77,132.72,21.96047806]
[1744504662229,26.0,132.77,132.72,103.56047806]
[1744504662627,21.96047806,132.78,132.73,21.96047806]
[1744504662831,30.11467806,132.8,132.74,40.61012692]
[1744504663148,30.11467806,132.8,132.74,48.14332692]
[1744504663149,37.64477806,132.8,132.74,48.14332692]
[1744504663338,21.96047806,132.78,132.74,26.18284886]
[1744504663632,21.96047806,132.79,132.74,48.14332692]
[1744504663832,7.22,132.82,132.76,21.96047806]
[1744504664143,21.96047806,132.79,132.74,129.74332692]
[1744504664628,21.96047806,132.8,132.75,21.96047806]
[1744504665138,21.96047806,132.8,132.76,7.5323]
[1744504666338,21.96047806,132.8,132.75,29.49327806]
[1744504666735,6.2117,132.87,132.8,0.28432314]
[1744504666944,21.96047806,132.88,132.83,21.96047806]
[1744504667126,21.96047806,132.88,132.83,103.56047806]
[1744504667326,21.96047806,132.88,132.83,111.08857806]
[1744504670442,21.96047806,132.88,132.83,81.6]
[1744504670443,21.96047806,132.85,132.83,81.6]
[1744504670741,21.96047806,132.84,132.8,7.5301]
[1744504671325,21.96047806,132.85,132.8,7.5301]
[1744504671822,21.96047806,132.84,132.8,7.5301]
[1744504672146,21.96047806,132.81,132.76,96.3522]
[1744504672366,21.96047806,132.79,132.76,7.5322]
[1744504673225,21.96047806,132.79,132.75,7.5329]
[1744504674146,21.96047806,132.78,132.75,7.5329]
[1744504674340,21.96047806,132.76,132.72,7.14]
[1744504674545,13.3685,132.83,132.75,21.96047806]
[1744504674750,21.96047806,132.8,132.75,103.56047806]
[1744504674952,21.96047806,132.79,132.75,81.6]
[1744504675158,21.96047806,132.76,132.73,7.534]
[1744504675536,21.96047806,132.77,132.73,7.534]
[1744504675737,21.96047806,132.78,132.73,29.49447806]
[1744504678946,21.96047806,132.79,132.74,21.96047806]
[1744504679147,26.0,132.8,132.74,103.56047806]
[1744504679354,21.96047806,132.79,132.74,103.56047806]
[1744504679555,21.96047806,132.78,132.74,81.6]
[1744504679746,21.96047806,132.77,132.74,81.6]
[1744504679955,21.96047806,132.78,132.74,81.6]
[1744504680457,21.96047806,132.78,132.74,89.1334]
[1744504681157,21.96047806,132.75,132.72,88.74]
[1744504681460,7.5317,132.78,132.72,89.1345]
[1744504681670,6.2285,132.83,132.76,21.96047806]
[1744504681843,21.96047806,132.84,132.79,21.96047806]
[1744504682168,21.96047806,132.83,132.78,21.96047806]
[1744504682464,21.96047806,132.84,132.79,21.96047806]
[1744504682762,13.7332,132.86,132.79,7.5301]
[1744504682763,21.96047806,132.83,132.79,7.5301]
[1744504683136,29.48787806,132.85,132.8,21.96047806]
[1744504683353,13.74742826,132.84,132.79,21.27752826]
[1744504683968,13.7333,132.86,132.79,21.27752826]
[1744504684267,13.74742826,132.84,132.79,7.5301]
[1744504685465,21.99878836,132.84,132.79,7.5301]
[1744504685643,21.99878836,132.84,132.79,29.52888836]
[1744504686253,21.99878836,132.84,132.79,111.12888836]
[1744504686855,21.99878836,132.84,132.79,89.1301]
[1744504687058,21.99878836,132.83,132.79,89.1301]
[1744504687678,21.99878836,132.83,132.79,81.6]
[1744504687857,21.99878836,132.8,132.74,29.53228836]
[1744504688172,21.99878836,132.79,132.74,29.53228836]
[1744504688752,21.99878836,132.79,132.73,113.6915]
[1744504688753,21.99878836,132.75,132.73,0.063]
[1744504688954,21.99878836,132.8,132.73,0.063]
[1744504688955,21.99878836,132.74,132.73,0.063]
[1744504689147,21.99878836,132.77,132.73,0.063]
[1744504689346,21.99878836,132.78,132.73,29.59578836]
[1744504689959,21.99878836,132.75,132.73,0.063]
[1744504691778,21.99878836,132.74,132.73,0.063]
[1744504691968,1.5489,132.81,132.73,0.063]
[1744504692274,21.99878836,132.8,132.75,21.99878836]
[1744504693192,21.99878836,132.8,132.76,7.5323]
[1744504693377,21.99878836,132.8,132.76,89.1323]
[1744504694675,21.99878836,132.77,132.73,81.663]
[1744504694871,21.99878836,132.76,132.73,7.5969]
[1744504695274,21.99878836,132.76,132.73,0.063]
[1744504695871,21.99878836,132.8,132.73,0.063]
[1744504695872,21.99878836,132.74,132.73,0.063]
[1744504696272,21.99878836,132.76,132.73,0.063]
[1744504696470,21.99878836,132.75,132.73,0.063]
[1744504696980,21.99878836,132.74,132.73,0.063]
[1744504697880,29.53228836,132.74,132.73,0.063]
[1744504699365,47.99878836,132.71,132.7,0.063]
[1744504700697,55.53398836,132.71,132.69,0.063]
[1744504700874,21.99878836,132.7,132.67,0.063]
[1744504701071,33.5352,132.71,132.67,0.063]
[1744504701072,21.99878836,132.68,132.67,0.063]
[1744504701593,21.99878836,132.68,132.66,0.063]
[1744504701594,6.5284,132.67,132.66,0.063]
[1744504701801,21.99878836,132.67,132.66,0.063]
[1744504702679,29.53618836,132.67,132.66,0.063]
[1744504707879,29.53618836,132.67,132.6,78.514043]
[1744504708081,21.99878836,132.65,132.6,100.51283136]
[1744504708270,21.99878836,132.64,132.6,78.514043]
[1744504708471,21.99878836,132.64,132.6,7.5414]
[1744504708670,21.99878836,132.65,132.6,29.54018836]
[1744504709182,21.99878836,132.64,132.59,40.85338836]
[1744504709495,7.5375,132.67,132.59,21.99878836]
[1744504709681,21.99878836,132.65,132.6,103.59878836]
[1744504709996,21.99878836,132.64,132.6,81.6]
[1744504710899,7.5363,132.69,132.6,103.59878836]
[1744504711100,29.13878836,132.72,132.64,7.5392]
[1744504711393,21.99878836,132.73,132.68,21.99878836]
[1744504711572,21.99878836,132.74,132.69,21.99878836]
[1744504711886,21.99878836,132.72,132.68,81.6]
[1744504713075,21.99878836,132.72,132.69,7.5363]
[1744504713288,21.99878836,132.73,132.69,7.5363]
[1744504714594,21.99878836,132.73,132.68,89.1368]
[1744504714804,7.5335,132.74,132.68,89.1368]
[1744504714805,21.99878836,132.72,132.68,89.1368]
[1744504716381,26.0295,132.77,132.68,89.1368]
[1744504716382,21.99878836,132.73,132.68,111.13558836]
[1744504716890,21.99878836,132.74,132.69,21.99878836]
[1744504717282,21.99878836,132.75,132.71,7.5352]
[1744504717485,21.99878836,132.75,132.71,89.1352]
[1744504717997,21.99878836,132.74,132.71,89.1352]
[1744504718298,43.99757672,132.72,132.65,89.1385]
[1744504718595,21.99878836,132.67,132.65,89.1385]
[1744504718970,21.99878836,132.66,132.62,94.826]
[1744504719515,21.99878836,132.67,132.63,7.5397]
[1744504720300,21.99878836,132.69,132.64,41.07492193]
[1744504720480,21.99878836,132.69,132.64,122.67492193]
[1744504721301,21.99878836,132.69,132.65,7.5386]
[1744504722007,21.99878836,132.68,132.65,7.5386]
[1744504723486,21.99878836,132.69,132.65,7.5386]
[1744504723790,14.7347,132.72,132.65,7.5386]
[1744504723791,21.99878836,132.68,132.65,7.5386]
[1744504724306,21.99878836,132.68,132.65,89.1386]
[1744504724816,21.99878836,132.71,132.65,111.13738836]
[1744504725200,21.99878836,132.71,132.66,41.07492193]
[1744504725391,21.99878836,132.72,132.67,21.99878836]
[1744504725587,21.99878836,132.72,132.68,7.5369]
[1744504725908,21.99878836,132.71,132.68,7.5369]
[1744504728814,21.99878836,132.72,132.68,7.5369]
[1744504729416,21.99878836,132.69,132.67,81.6]
[1744504729593,21.99878836,132.69,132.65,7.538]
[1744504731614,8.7162,132.76,132.65,7.538]
[1744504731615,8.7162,132.76,132.67,21.99878836]
[1744504731802,26.0,132.73,132.68,21.99878836]
[1744504732002,21.99878836,132.74,132.68,103.59878836]
[1744504732723,21.99878836,132.74,132.69,7.5363]
[1744504733490,21.99878836,132.74,132.69,29.53508836]
[1744504734017,21.99878836,132.74,132.69,7.5363]
[1744504734724,21.99878836,132.73,132.69,7.5363]
[1744504735021,21.49878836,132.73,132.69,7.5363]
[1744504736022,21.49878836,132.73,132.69,89.1363]
[1744504737421,21.99878836,132.7,132.64,103.59878836]
[1744504737617,21.99878836,132.68,132.64,81.6]
[1744504737916,21.99878836,132.69,132.64,103.59878836]
[1744504738127,21.99878836,132.7,132.65,21.99878836]
[1744504738300,21.99878836,132.7,132.65,29.53738836]
[1744504738501,21.99878836,132.69,132.65,7.5386]
[1744504738708,21.99878836,132.68,132.64,81.6]
[1744504738902,21.99878836,132.68,132.64,89.1386]
[1744504740126,21.99878836,132.67,132.64,89.1386]
[1744504741598,21.99878836,132.66,132.64,89.1386]
[1744504742526,21.99878836,132.67,132.64,89.1386]
[1744504747403,13.78169595,132.69,132.64,102.92029595]
[1744504748017,13.78169595,132.68,132.64,102.92029595]
[1744504748529,13.78169595,132.68,132.64,89.1386]
[1744504749313,13.78169595,132.65,132.63,7.24]
[1744504749731,13.78169595,132.66,132.63,7.24]
[1744504750129,13.78169595,132.66,132.63,14.7797]
[1744504751130,13.78169595,132.65,132.62,89.1402]
[1744504752330,7.5357,132.7,132.62,102.92189595]
[1744504752635,13.78169595,132.67,132.63,19.07613357]
[1744504752933,13.78169595,132.66,132.63,81.6]
[1744504753434,13.78169595,132.65,132.63,81.6]
[1744504754433,13.78169595,132.66,132.63,89.1397]
[1744504754825,13.78169595,132.68,132.63,89.1397]
[1744504755033,13.78169595,132.69,132.63,102.92139595]
[1744504755233,13.78169595,132.68,132.63,102.92139595]
[1744504757045,13.78169595,132.67,132.63,89.1397]
[1744504758440,13.78169595,132.68,132.63,102.92139595]
[1744504760326,13.78169595,132.67,132.63,89.1397]
[1744504760634,13.78169595,132.66,132.63,89.1397]
[1744504760853,13.78169595,132.64,132.6,1.6348]
[1744504761056,13.78169595,132.65,132.6,83.2348]
[1744504761431,13.78169595,132.65,132.6,97.01649595]
[1744504761855,13.78169595,132.65,132.61,7.5407]
[1744504762560,7.5376,132.67,132.61,7.5407]
[1744504762561,13.78169595,132.64,132.61,7.5407]
[1744504763757,13.78169595,132.65,132.61,7.5407]
[1744504764960,7.5369,132.68,132.61,7.5407]
[1744504765169,26.14216157,132.59,132.58,0.063]
[1744504765337,39.92385752,132.59,132.58,0.063]
[1744504765538,53.70555347,132.59,132.55,0.063]
[1744504765856,13.78169595,132.56,132.55,0.063]
[1744504766345,27.5633919,132.56,132.55,0.063]
[1744504766741,35.1070919,132.56,132.55,0.063]
[1744504769859,21.32539595,132.56,132.55,0.063]
[1744504774453,13.78169595,132.56,132.55,0.063]
[1744504775168,21.32539595,132.56,132.55,0.063]
[1744504782170,26.3972,132.59,132.55,0.063]
[1744504782369,13.78169595,132.57,132.55,0.063]
[1744504783069,13.78169595,132.56,132.55,0.063]
[1744504785162,13.78169595,132.57,132.55,0.063]
[1744504785496,13.78169595,132.56,132.55,0.063]
[1744504789487,13.78169595,132.57,132.55,0.063]
[1744504790676,13.78169595,132.56,132.55,0.063]
[1744504795681,21.32539595,132.56,132.55,0.063]
[1744504797981,13.78169595,132.56,132.55,0.063]
[1744504801493,21.32539595,132.56,132.55,0.063]
[1744504801823,35.1070919,132.56,132.55,0.063]
[1744504802282,21.32539595,132.56,132.55,0.063]
[1744504802980,35.1070919,132.56,132.55,0.063]
[1744504805091,26.0,132.52,132.5,0.063]
[1744504805291,13.78169595,132.51,132.49,0.063]
[1744504805593,13.78169595,132.5,132.49,0.063]
[1744504806184,21.32879595,132.5,132.49,0.063]
[1744504807690,13.78169595,132.5,132.49,0.063]
[1744504808289,21.32879595,132.5,132.49,0.063]
[1744504808592,13.78169595,132.5,132.49,0.063]
[1744504808782,13.78169595,132.51,132.49,0.063]
[1744504808971,13.78169595,132.52,132.49,0.063]
[1744504809779,13.78169595,132.53,132.49,19.13913357]
[1744504810673,13.78169595,132.54,132.5,13.78169595]
[1744504810985,13.78169595,132.56,132.52,13.78169595]
[1744504811170,13.78169595,132.57,132.51,20.71833357]
[1744504811370,13.78169595,132.57,132.52,13.78169595]
[1744504811679,13.78169595,132.57,132.53,7.5454]
[1744504812993,7.5429,132.58,132.52,7.546]
[1744504813292,13.78169595,132.56,132.52,7.546]
[1744504814666,13.78169595,132.57,132.52,21.32769595]
[1744504814869,13.78169595,132.57,132.53,19.07613357]
[1744504817205,13.78169595,132.56,132.53,19.07613357]
[1744504817885,13.78169595,132.55,132.52,19.07613357]
[1744504818577,13.78169595,132.56,132.52,19.07613357]
[1744504819404,13.78169595,132.55,132.52,26.62193357]
[1744504819588,13.78169595,132.56,132.52,26.62193357]
[1744504819783,13.78169595,132.57,132.52,40.40362952]
[1744504819996,13.78169595,132.58,132.54,0.42648471]